Workbook

Sheet Existências
B1: Refª | C1: Qt | D1: Peso unit (g)
B2: AAAJ748 | C2: 315 | D2: 423
B3: AAAR258 | C3: 188 | D3: 300
B4: AACC235 | C4: 191 | D4: 1160
B5: AACI657 | C5: 305 | D5: 1098
B6: AAEV849 | C6: 315 | D6: 1090
B7: AAGP626 | C7: 286 | D7: 1103
B8: AAKP890 | C8: 296 | D8: 465
B9: AALT144 | C9: 171 | D9: 1038
B10: AAOH135 | C10: 182 | D10: 1212
B11: AAOV628 | C11: 306 | D11: 1154
B12: AARB179 | C12: 178 | D12: 978
B13: AATK240 | C13: 171 | D13: 1074
B14: AAUC367 | C14: 172 | D14: 410
B15: AAUT327 | C15: 155 | D15: 607
B16: AAVW799 | C16: 300 | D16: 1085
B17: AAVX388 | C17: 175 | D17: 680
B18: AAWX241 | C18: 184 | D18: 967
B19: AAXU257 | C19: 156 | D19: 637
B20: ABAF769 | C20: 301 | D20: 1492
B21: ABBJ515 | C21: 312 | D21: 1397
B22: ABBS846 | C22: 284 | D22: 1174
B23: ABDT386 | C23: 161 | D23: 596
B24: ABHG436 | C24: 181 | D24: 665
B25: ABJC802 | C25: 305 | D25: 945
B26: ABJV360 | C26: 193 | D26: 615
B27: ABKG925 | C27: 307 | D27: 363
B28: ABKK530 | C28: 323 | D28: 723
B29: ABQT651 | C29: 292 | D29: 1362
B30: ABTL273 | C30: 182 | D30: 655
B31: ABUL388 | C31: 177 | D31: 544
B32: ABWA144 | C32: 172 | D32: 920
B33: ABXA153 | C33: 161 | D33: 1137
B34: ABXV158 | C34: 181 | D34: 950
B35: ACAB159 | C35: 185 | D35: 1192
B36: ACCI563 | C36: 292 | D36: 938
B37: ACDU368 | C37: 156 | D37: 605
B38: ACFQ501 | C38: 295 | D38: 550
B39: ACFX550 | C39: 278 | D39: 898
B40: ACGA811 | C40: 304 | D40: 1259
B41: ACGU398 | C41: 150 | D41: 584
B42: ACIE653 | C42: 292 | D42: 1258
B43: ACJH331 | C43: 160 | D43: 689
B44: ACKO364 | C44: 153 | D44: 627
B45: ACLK791 | C45: 298 | D45: 386
B46: ACLS574 | C46: 280 | D46: 1333
B47: ACNS399 | C47: 155 | D47: 588
B48: ACPU340 | C48: 151 | D48: 300
B49: ACUP195 | C49: 184 | D49: 1054
B50: ACVE197 | C50: 170 | D50: 1084
B51: ACWC290 | C51: 161 | D51: 567
B52: ACWK403 | C52: 173 | D52: 592
B53: ACXR884 | C53: 296 | D53: 380
B54: ACYN455 | C54: 180 | D54: 715
B55: ADAQ333 | C55: 173 | D55: 546
B56: ADBS164 | C56: 192 | D56: 1086
B57: ADCM751 | C57: 304 | D57: 1335
B58: ADGA746 | C58: 295 | D58: 627
B59: ADGG442 | C59: 174 | D59: 435
B60: ADHO241 | C60: 178 | D60: 1103
B61: ADKH111 | C61: 194 | D61: 1063
B62: ADKL220 | C62: 165 | D62: 1003
B63: ADKN493 | C63: 186 | D63: 593
B64: ADKX371 | C64: 189 | D64: 407
B65: ADLN539 | C65: 297 | D65: 659
B66: ADNC614 | C66: 302 | D66: 1330
B67: ADOA455 | C67: 175 | D67: 527
B68: ADOI106 | C68: 153 | D68: 1138
B69: ADPC712 | C69: 302 | D69: 601
B70: ADPU280 | C70: 184 | D70: 751
B71: ADSF721 | C71: 291 | D71: 1493
B72: ADVJ213 | C72: 179 | D72: 1015
B73: AECQ129 | C73: 194 | D73: 976
B74: AECU274 | C74: 175 | D74: 632
B75: AEEO815 | C75: 296 | D75: 1108
B76: AEGK807 | C76: 257 | D76: 228
B77: AEHS774 | C77: 292 | D77: 1224
B78: AEIY233 | C78: 182 | D78: 1005
B79: AEJF444 | C79: 159 | D79: 493
B80: AEJF709 | C80: 272 | D80: 384
B81: AEKC622 | C81: 305 | D81: 1376
B82: AEKD122 | C82: 144 | D82: 931
B83: AEKI836 | C83: 300 | D83: 511
B84: AEMG784 | C84: 277 | D84: 303
B85: AENG623 | C85: 283 | D85: 595
B86: AENY201 | C86: 189 | D86: 1049
B87: AERM770 | C87: 324 | D87: 1012
B88: AESK253 | C88: 159 | D88: 522
B89: AEVV878 | C89: 284 | D89: 1396
B90: AEWT273 | C90: 156 | D90: 607
B91: AEYP117 | C91: 169 | D91: 965
B92: AFDM844 | C92: 294 | D92: 1368
B93: AFEG187 | C93: 192 | D93: 929
B94: AFEV492 | C94: 145 | D94: 501
B95: AFFH582 | C95: 335 | D95: 757
B96: AFGL199 | C96: 182 | D96: 1127
B97: AFHL583 | C97: 303 | D97: 1070
B98: AFJI192 | C98: 153 | D98: 1078
B99: AFJN197 | C99: 198 | D99: 1109
B100: AFLI373 | C100: 181 | D100: 655
B101: AFOA380 | C101: 153 | D101: 570
B102: AFPA111 | C102: 167 | D102: 1009
B103: AFPQ423 | C103: 178 | D103: 486
B104: AFQJ930 | C104: 295 | D104: 292
B105: AFQU915 | C105: 306 | D105: 762
B106: AFRV380 | C106: 157 | D106: 752
B107: AFSF202 | C107: 148 | D107: 1081
B108: AFXO297 | C108: 151 | D108: 594
B109: AGBR560 | C109: 288 | D109: 1297
B110: AGBU370 | C110: 173 | D110: 563
B111: AGCC531 | C111: 288 | D111: 1109
B112: AGDO599 | C112: 299 | D112: 420
B113: AGGW668 | C113: 277 | D113: 1227
B114: AGHA381 | C114: 148 | D114: 615
B115: AGIW557 | C115: 322 | D115: 997
B116: AGJG217 | C116: 172 | D116: 864
B117: AGKC368 | C117: 163 | D117: 512
B118: AGMK376 | C118: 186 | D118: 599
B119: AGMX599 | C119: 285 | D119: 825
B120: AGPV672 | C120: 292 | D120: 679
B121: AGTX806 | C121: 317 | D121: 473
B122: AGUR855 | C122: 300 | D122: 531
B123: AGUS526 | C123: 296 | D123: 843
B124: AGYG459 | C124: 176 | D124: 673
B125: AGYP841 | C125: 282 | D125: 971
B126: AHAU796 | C126: 311 | D126: 212
B127: AHBQ500 | C127: 291 | D127: 1359
B128: AHCX322 | C128: 170 | D128: 532
B129: AHDK167 | C129: 163 | D129: 1020
B130: AHDY791 | C130: 304 | D130: 268
B131: AHEX125 | C131: 157 | D131: 1109
B132: AHFC626 | C132: 289 | D132: 622
B133: AHGY148 | C133: 180 | D133: 1078
B134: AHHM141 | C134: 161 | D134: 1067
B135: AHIK859 | C135: 308 | D135: 1215
B136: AHNA899 | C136: 278 | D136: 804
B137: AHNH267 | C137: 176 | D137: 594
B138: AHOU218 | C138: 201 | D138: 983
B139: AHRD896 | C139: 290 | D139: 400
B140: AHRT560 | C140: 297 | D140: 1373
B141: AHTL721 | C141: 313 | D141: 1112
B142: AHTY358 | C142: 183 | D142: 499
B143: AHVO832 | C143: 304 | D143: 311
B144: AHWG710 | C144: 304 | D144: 1291
B145: AHXN407 | C145: 170 | D145: 477
B146: AHYP689 | C146: 276 | D146: 633
B147: AIBW807 | C147: 293 | D147: 1426
B148: AICS387 | C148: 174 | D148: 313
B149: AICY938 | C149: 297 | D149: 1050
B150: AIDV574 | C150: 278 | D150: 714
B151: AIEK276 | C151: 149 | D151: 283
B152: AIGV814 | C152: 293 | D152: 1181
B153: AIHY635 | C153: 310 | D153: 235
B154: AIIE631 | C154: 273 | D154: 544
B155: AIKL105 | C155: 175 | D155: 1069
B156: AILO813 | C156: 277 | D156: 704
B157: AIMF565 | C157: 327 | D157: 1050
B158: AIMN763 | C158: 286 | D158: 1482
B159: AINB568 | C159: 289 | D159: 1012
B160: AIQC854 | C160: 290 | D160: 1111
B161: AIQD858 | C161: 293 | D161: 352
B162: AIRK440 | C162: 175 | D162: 731
B163: AIRN273 | C163: 175 | D163: 601
B164: AIRQ641 | C164: 285 | D164: 491
B165: AISE648 | C165: 300 | D165: 810
B166: AISV424 | C166: 175 | D166: 431
B167: AIUR401 | C167: 167 | D167: 577
B168: AIVL335 | C168: 143 | D168: 482
B169: AIXB253 | C169: 178 | D169: 541
B170: AIXE704 | C170: 287 | D170: 1367
B171: AIYQ822 | C171: 292 | D171: 1269
B172: AJCR910 | C172: 304 | D172: 1043
B173: AJEC813 | C173: 286 | D173: 1030
B174: AJGU695 | C174: 316 | D174: 602
B175: AJII902 | C175: 299 | D175: 1199
B176: AJLG910 | C176: 312 | D176: 599
B177: AJLM240 | C177: 175 | D177: 1058
B178: AJOD253 | C178: 182 | D178: 427
B179: AJQC834 | C179: 294 | D179: 1434
B180: AJQX769 | C180: 310 | D180: 1423
B181: AJSB837 | C181: 291 | D181: 1295
B182: AJTR570 | C182: 299 | D182: 920
B183: AJUU393 | C183: 176 | D183: 498
B184: AJWK303 | C184: 182 | D184: 691
B185: AJWU857 | C185: 293 | D185: 1087
B186: AJXP831 | C186: 306 | D186: 1343
B187: AJXT297 | C187: 179 | D187: 764
B188: AJYK559 | C188: 281 | D188: 696
B189: AJYL374 | C189: 173 | D189: 504
B190: AJYY625 | C190: 302 | D190: 271
B191: AKBF140 | C191: 185 | D191: 1044
B192: AKDH423 | C192: 179 | D192: 720
B193: AKGO915 | C193: 301 | D193: 580
B194: AKHF496 | C194: 203 | D194: 625
B195: AKHK132 | C195: 190 | D195: 998
B196: AKID453 | C196: 178 | D196: 782
B197: AKJH134 | C197: 186 | D197: 1112
B198: AKKV739 | C198: 287 | D198: 1489
B199: AKLB268 | C199: 190 | D199: 360
B200: AKLG354 | C200: 177 | D200: 303
... 13469 more rows

Sheet Encomenda
B3: Encomenda n.440/2017
B5: Refª | C5: Qt encom | D5: St Inicial (S0) | E5: St Insuf? | F5: Qt a enviar | G5: P_tot (kg) | H5: St final (SF) | I5: SF < 0,1 S0? | K5: P_tot_Enc:
B6: ONUI954 | C6: 75 | D6: =VLOOKUP(B6, Existências!$B$2:$D$13669, 2,FALSE) -> 306 | E6: =IF(D6 < C6, "*", "") ->  | F6: =IF(C6 <= D6, C6, D6) -> 75 | G6: =F6*VLOOKUP(B6, Existências!$B$2:$D$13669, 3, FALSE)/1000 -> 34.28 | H6: =IF(D6-C6 < 0, 0, D6-C6) -> 231 | I6: =IF(H6 < 0.1*D6, "***", "") ->  | K6: =SUM(G6:G25) -> 2561.52
B7: EEQX274 | C7: 194 | D7: =VLOOKUP(B7, Existências!$B$2:$D$13669, 2,FALSE) -> 194 | F7: 194 | G7: =F7*VLOOKUP(B7, Existências!$B$2:$D$13669, 3, FALSE)/1000 -> 91.76 | H7: 0 | I7: ***
B8: XIIC592 | C8: 339 | D8: =VLOOKUP(B8, Existências!$B$2:$D$13669, 2,FALSE) -> 311 | E8: * | F8: 311 | G8: =F8*VLOOKUP(B8, Existências!$B$2:$D$13669, 3, FALSE)/1000 -> 92.06 | H8: 0 | I8: ***
B9: VWEG325 | C9: 132 | D9: =VLOOKUP(B9, Existências!$B$2:$D$13669, 2,FALSE) -> 181 | F9: 132 | G9: =F9*VLOOKUP(B9, Existências!$B$2:$D$13669, 3, FALSE)/1000 -> 55.57 | H9: 49
B10: GYQE778 | C10: 279 | D10: =VLOOKUP(B10, Existências!$B$2:$D$13669, 2,FALSE) -> 301 | F10: 279 | G10: =F10*VLOOKUP(B10, Existências!$B$2:$D$13669, 3, FALSE)/1000 -> 120.81 | H10: 22 | I10: ***
B11: YOME285 | C11: 71 | D11: =VLOOKUP(B11, Existências!$B$2:$D$13669, 2,FALSE) -> 168 | F11: 71 | G11: =F11*VLOOKUP(B11, Existências!$B$2:$D$13669, 3, FALSE)/1000 -> 44.80 | H11: 97
B12: QRAF698 | C12: 93 | D12: =VLOOKUP(B12, Existências!$B$2:$D$13669, 2,FALSE) -> 302 | F12: 93 | G12: =F12*VLOOKUP(B12, Existências!$B$2:$D$13669, 3, FALSE)/1000 -> 42.32 | H12: 209
B13: CQEY117 | C13: 113 | D13: =VLOOKUP(B13, Existências!$B$2:$D$13669, 2,FALSE) -> 183 | F13: 113 | G13: =F13*VLOOKUP(B13, Existências!$B$2:$D$13669, 3, FALSE)/1000 -> 132.32 | H13: 70
B14: BTCP305 | C14: 173 | D14: =VLOOKUP(B14, Existências!$B$2:$D$13669, 2,FALSE) -> 157 | E14: * | F14: 157 | G14: =F14*VLOOKUP(B14, Existências!$B$2:$D$13669, 3, FALSE)/1000 -> 101.74 | H14: 0 | I14: ***
B15: WBRH538 | C15: 304 | D15: =VLOOKUP(B15, Existências!$B$2:$D$13669, 2,FALSE) -> 316 | F15: 304 | G15: =F15*VLOOKUP(B15, Existências!$B$2:$D$13669, 3, FALSE)/1000 -> 434.11 | H15: 12 | I15: ***
B16: NVUI859 | C16: 198 | D16: =VLOOKUP(B16, Existências!$B$2:$D$13669, 2,FALSE) -> 311 | F16: 198 | G16: =F16*VLOOKUP(B16, Existências!$B$2:$D$13669, 3, FALSE)/1000 -> 274.82 | H16: 113
B17: EIRK220 | C17: 199 | D17: =VLOOKUP(B17, Existências!$B$2:$D$13669, 2,FALSE) -> 204 | F17: 199 | G17: =F17*VLOOKUP(B17, Existências!$B$2:$D$13669, 3, FALSE)/1000 -> 218.70 | H17: 5 | I17: ***
B18: NROH853 | C18: 230 | D18: =VLOOKUP(B18, Existências!$B$2:$D$13669, 2,FALSE) -> 291 | F18: 230 | G18: =F18*VLOOKUP(B18, Existências!$B$2:$D$13669, 3, FALSE)/1000 -> 240.12 | H18: 61
B19: OKFX484 | C19: 174 | D19: =VLOOKUP(B19, Existências!$B$2:$D$13669, 2,FALSE) -> 175 | F19: 174 | G19: =F19*VLOOKUP(B19, Existências!$B$2:$D$13669, 3, FALSE)/1000 -> 95.35 | H19: 1 | I19: ***
B20: RNWU222 | C20: 62 | D20: =VLOOKUP(B20, Existências!$B$2:$D$13669, 2,FALSE) -> 143 | F20: 62 | G20: =F20*VLOOKUP(B20, Existências!$B$2:$D$13669, 3, FALSE)/1000 -> 62.81 | H20: 81
B21: KQWP848 | C21: 177 | D21: =VLOOKUP(B21, Existências!$B$2:$D$13669, 2,FALSE) -> 282 | F21: 177 | G21: =F21*VLOOKUP(B21, Existências!$B$2:$D$13669, 3, FALSE)/1000 -> 157.00 | H21: 105
B22: FRJS175 | C22: 143 | D22: =VLOOKUP(B22, Existências!$B$2:$D$13669, 2,FALSE) -> 150 | F22: 143 | G22: =F22*VLOOKUP(B22, Existências!$B$2:$D$13669, 3, FALSE)/1000 -> 153.73 | H22: 7 | I22: ***
B23: FJHV521 | C23: 71 | D23: =VLOOKUP(B23, Existências!$B$2:$D$13669, 2,FALSE) -> 303 | F23: 71 | G23: =F23*VLOOKUP(B23, Existências!$B$2:$D$13669, 3, FALSE)/1000 -> 51.33 | H23: 232
B24: HJPG309 | C24: 172 | D24: =VLOOKUP(B24, Existências!$B$2:$D$13669, 2,FALSE) -> 166 | E24: * | F24: 166 | G24: =F24*VLOOKUP(B24, Existências!$B$2:$D$13669, 3, FALSE)/1000 -> 85.66 | H24: 0 | I24: ***
B25: FIMR370 | C25: 189 | D25: =VLOOKUP(B25, Existências!$B$2:$D$13669, 2,FALSE) -> 168 | E25: * | F25: 168 | G25: =F25*VLOOKUP(B25, Existências!$B$2:$D$13669, 3, FALSE)/1000 -> 72.24 | H25: 0 | I25: ***
B28: As células a amarelo devem ser programadas para originar o seu preenchimento automático.
B29: Col D: Indicar o Stock Inicial, S0, (ver Existências).
B30: Col E: Se o Stock Inicial, S0, for inferior à Quantidade encomendada, assinalar *; caso contrário, nada assinalar.
B31: Col F: Determinar o valor a enviar - o total encomendado ou, caso tal seja impossível, a quantidade existente.
B32: Col G: Determinar o peso total (em kg) correspondente ao envio. (Ver Existências)
B33: Col H: Determinar o Stock final, SF, após o processamento desta encomenda.
B34: Col I: Se SF for inferior a 10% de S0, indicar ***; caso contrário, nada indicar.
B35: Célula K6: determinar o peso total da encomenda a expedir (em kg).
